bitfinex/quotes_BTCUSD_20250102
["timestamp","ask_amount","ask_price","bid_price","bid_amount"]
[1735841490770,0.00011597,97005.0,97004.0,2.56780301]
[1735841490975,8.55e-05,97046.0,97022.0,0.1]
[1735841491318,0.206106,97038.0,97022.0,0.1]
[1735841491530,0.206106,97038.0,97029.0,0.206123]
[1735841491737,0.206089,97045.0,97022.0,0.1]
[1735841491931,0.00020148,97046.0,97025.0,0.206131]
[1735841492134,0.00020148,97046.0,97032.0,0.206116]
[1735841492135,0.206092,97044.0,97032.0,0.206116]
[1735841492369,0.20629048,97046.0,97034.0,0.1]
[1735841492892,0.20629048,97046.0,97035.0,1.5]
[1735841493738,0.20629048,97046.0,97026.0,0.20398632]
[1735841493739,0.20629048,97046.0,97031.0,0.206119]
[1735841493947,0.10398632,97045.0,97018.0,0.1]
[1735841494144,0.00020148,97046.0,97030.0,0.206121]
[1735841494344,0.2061,97041.0,97029.0,0.000171]
[1735841494546,0.206108,97037.0,97029.0,0.000171]
[1735841494763,0.01066176,97046.0,97029.0,0.000171]
[1735841494977,0.206121,97030.0,97029.0,0.000171]
[1735841498729,0.206089,97045.0,97029.0,0.000171]
[1735841498934,0.0499,97047.0,97029.0,0.000171]
[1735841499291,0.206111,97036.0,97031.0,1.5]
[1735841499498,0.206116,97033.0,97031.0,1.5]
[1735841499925,0.206116,97033.0,97029.0,0.000171]
[1735841500084,0.206107,97037.0,97029.0,0.000171]
[1735841500506,0.20609,97045.0,97029.0,0.000171]
[1735841500709,0.0499,97047.0,97033.0,0.206115]
[1735841500974,0.206092,97044.0,97033.0,0.206115]
[1735841501268,0.0499,97047.0,97029.0,0.206294]
[1735841501836,0.0499,97047.0,97034.0,0.206111]
[1735841501997,0.206081,97049.0,97038.0,0.206104]
[1735841502397,0.206089,97045.0,97039.0,1.5]
[1735841503054,0.2061,97040.0,97039.0,1.5]
[1735841503255,0.1,97050.0,97029.0,0.000171]
[1735841503456,0.10398632,97045.0,97029.0,0.000171]
[1735841503843,0.412237,97032.0,97029.0,0.000171]
[1735841504482,0.206118,97032.0,97029.0,0.000171]
[1735841506750,0.206121,97030.0,97029.0,0.000171]
[1735841508673,0.31010732,97030.0,97029.0,0.000171]
[1735841508856,0.48880732,97030.0,97029.0,0.000171]
[1735841509052,0.206172,97006.0,97005.0,0.09232304]
[1735841509301,0.289372,97006.0,97005.0,0.09232304]
[1735841509703,0.39335832,97006.0,97005.0,0.09232304]
[1735841509904,0.44325832,97006.0,97005.0,0.09232304]
[1735841510111,0.44325832,97006.0,97005.0,0.000171]
[1735841510315,0.44325832,97006.0,97000.0,0.000171]
[1735841510316,0.173,97005.0,97000.0,0.000171]
[1735841510518,0.456183,97001.0,97000.0,0.000171]
[1735841510692,0.56016932,97001.0,97000.0,0.000171]
[1735841511389,0.58316932,97001.0,97000.0,0.000171]
[1735841511790,0.288221,96983.0,96956.0,0.09215204]
[1735841511991,0.31020932,96982.0,96976.0,0.00028697]
[1735841512563,0.273,96977.0,96976.0,0.00028697]
[1735841512775,0.89256632,96977.0,96976.0,0.00028697]
[1735841513882,0.89256632,96977.0,96937.0,0.09215204]
[1735841513883,0.456262,96964.0,96937.0,0.09215204]
[1735841514083,1.17782832,96964.0,96963.0,1e-06]
[1735841514296,0.456283,96954.0,96937.0,0.09215204]
[1735841514504,0.456283,96954.0,96933.0,0.0001702]
[1735841514505,1.09884932,96954.0,96933.0,0.0001702]
[1735841516344,1.1093649,96954.0,96933.0,0.0001702]
[1735841516542,1.0863649,96954.0,96933.0,0.0001702]
[1735841516721,1.1093649,96954.0,96933.0,0.0001702]
[1735841517573,0.9863649,96954.0,96933.0,0.0001702]
[1735841517776,1.0863649,96954.0,96933.0,0.0001702]
[1735841519542,0.9863649,96954.0,96933.0,0.0001702]
[1735841519762,1.0863649,96954.0,96933.0,0.0001702]
[1735841520289,1.106971,96954.0,96933.0,0.0001702]
[1735841520494,1.129971,96954.0,96933.0,0.0001702]
[1735841521142,0.456296,96948.0,96933.0,0.0001702]
[1735841521345,1.07586232,96948.0,96933.0,0.0001702]
[1735841521969,1.09886232,96948.0,96933.0,0.0001702]
[1735841522184,1.22716232,96948.0,96933.0,0.0001702]
[1735841522770,0.479306,96943.0,96942.0,6e-07]
[1735841522994,0.479306,96943.0,96906.0,0.000171]
[1735841522995,0.1,96932.0,96931.0,2e-07]
[1735841523209,0.1,96932.0,96906.0,0.000171]
[1735841523210,0.374447,96924.0,96906.0,0.000171]
[1735841523352,0.99401332,96924.0,96906.0,0.000171]
[1735841523559,0.97101332,96924.0,96906.0,0.000171]
[1735841523760,0.99401332,96924.0,96906.0,0.000171]
[1735841523990,0.99401332,96924.0,96923.0,0.00066217]
[1735841524417,1.01485083,96924.0,96923.0,0.00066217]
[1735841525373,0.99185083,96924.0,96923.0,0.00066217]
[1735841525545,1.16485083,96924.0,96923.0,0.00066217]
[1735841527511,1.16485083,96924.0,96923.0,1.7e-07]
[1735841527680,0.456372,96912.0,96906.0,0.000171]
[1735841527930,1.09893832,96912.0,96906.0,0.000171]
[1735841528372,1.07593832,96912.0,96906.0,0.000171]
[1735841529400,0.97593832,96912.0,96906.0,0.000171]
[1735841529815,1.08643636,96912.0,96906.0,0.000171]
[1735841530459,0.721952,96912.0,96906.0,0.000171]
[1735841531762,0.721952,96912.0,96911.0,0.1002]
[1735841531763,0.51558,96912.0,96911.0,0.1002]
[1735841532230,0.51558,96912.0,96911.0,0.1002856]
[1735841532480,0.51558,96912.0,96911.0,1.5002856]
[1735841532695,0.51558,96912.0,96911.0,1.6002856]
[1735841533720,0.51558,96912.0,96911.0,1.5002856]
[1735841534227,0.206356,96920.0,96911.0,1.5002856]
[1735841534968,0.206349,96923.0,96911.0,1.5002856]
[1735841535227,0.206365,96916.0,96911.0,1.5002856]
[1735841535443,0.206372,96912.0,96911.0,1.5002856]
[1735841535719,0.206372,96912.0,96911.0,0.0002856]
[1735841536235,0.722302,96912.0,96911.0,0.0002856]
[1735841536451,0.82628832,96912.0,96911.0,0.0002856]
[1735841536883,0.92628832,96912.0,96911.0,0.0002856]
[1735841538109,0.822302,96912.0,96911.0,0.0002856]
[1735841538610,0.92628832,96912.0,96911.0,0.0002856]
[1735841538827,0.822302,96912.0,96911.0,0.0002856]
[1735841539470,0.51593,96912.0,96911.0,0.0002856]
[1735841540382,0.61991632,96912.0,96911.0,0.0002856]
[1735841540826,0.86991632,96912.0,96911.0,0.0002856]
[1735841541988,0.95081632,96912.0,96911.0,0.0002856]
[1735841542201,0.95081632,96912.0,96903.0,6e-07]
[1735841542202,0.123,96904.0,96903.0,6e-07]
[1735841542420,0.356232,96884.0,96854.0,0.1]
[1735841542629,0.10398632,96883.0,96855.0,0.1]
[1735841542842,0.64103879,96883.0,96855.0,0.1]
[1735841543295,0.206436,96882.0,96855.0,0.1]
[1735841543467,0.10398632,96881.0,96855.0,0.1]
[1735841543675,0.6661132,96881.0,96855.0,0.1]
[1735841543828,0.6661132,96881.0,96880.0,0.0003177]
[1735841544412,0.8161132,96881.0,96880.0,0.0003177]
[1735841544623,0.93081659,96881.0,96880.0,7e-07]
[1735841544836,0.90336258,96881.0,96880.0,7e-07]
[1735841545611,0.93507579,96881.0,96880.0,7e-07]
[1735841546208,0.479458,96872.0,96871.0,0.0001607]
[1735841546412,1.09937432,96872.0,96871.0,7e-07]
[1735841548110,1.07637432,96872.0,96871.0,7e-07]
[1735841548358,0.97637432,96872.0,96871.0,7e-07]
[1735841548561,1.07637432,96872.0,96871.0,7e-07]
[1735841549236,0.99937432,96872.0,96871.0,7e-07]
[1735841549432,1.09937432,96872.0,96871.0,7e-07]
[1735841550045,0.99937432,96872.0,96871.0,7e-07]
[1735841550395,0.722388,96872.0,96871.0,7e-07]
[1735841551625,0.82637432,96872.0,96871.0,7e-07]
[1735841552455,0.722388,96872.0,96871.0,7e-07]
[1735841552661,0.82637432,96872.0,96871.0,7e-07]
[1735841553639,0.92637432,96872.0,96871.0,7e-07]
[1735841553921,0.722388,96872.0,96871.0,7e-07]
[1735841554307,0.822388,96872.0,96871.0,7e-07]
[1735841554518,0.722388,96872.0,96871.0,7e-07]
[1735841555132,0.82637432,96872.0,96871.0,7e-07]
[1735841555367,0.92637432,96872.0,96871.0,7e-07]
[1735841556515,0.92637432,96872.0,96871.0,8.62e-05]
[1735841556706,1.09954532,96872.0,96871.0,8.62e-05]
[1735841559898,1.14854532,96872.0,96871.0,8.62e-05]
[1735841560965,0.1,96867.0,96866.0,2e-07]
[1735841561165,0.89291632,96867.0,96866.0,2e-07]
[1735841561367,1.09938432,96867.0,96866.0,2e-07]
[1735841561573,1.09938432,96867.0,96831.0,0.0002]
[1735841561574,0.1,96857.0,96831.0,0.0002]
[1735841561868,1.09940532,96857.0,96831.0,0.0002]
[1735841562183,1.07640532,96857.0,96831.0,0.0002]
[1735841562384,1.07640532,96857.0,96833.0,0.1]
[1735841563139,1.08695699,96857.0,96833.0,0.1]
[1735841563595,1.08695699,96857.0,96831.0,0.0002]
[1735841563596,1.10995699,96857.0,96831.0,0.0002]
[1735841564005,1.1306332,96857.0,96831.0,0.0002]
[1735841564408,1.1076332,96857.0,96831.0,0.0002]
[1735841565950,1.1076332,96857.0,96833.0,0.1]
[1735841566741,1.1076332,96857.0,96831.0,0.0002]
[1735841566993,1.1076332,96857.0,96833.0,0.1]
[1735841567298,1.1076332,96857.0,96831.0,0.0002]
[1735841567472,1.1306332,96857.0,96831.0,0.0002]
[1735841569023,1.1076332,96857.0,96835.0,0.1]
[1735841569230,1.0076332,96857.0,96835.0,0.1]
[1735841569434,1.0076332,96857.0,96836.0,1.5]
[1735841569636,0.51593,96857.0,96855.0,0.1]
[1735841571240,0.51593,96857.0,96846.0,0.1]
[1735841571447,0.51593,96857.0,96844.0,0.1]
[1735841571647,0.51593,96857.0,96850.0,0.100171]
[1735841572919,0.51593,96857.0,96850.0,0.000171]
[1735841573119,0.51593,96857.0,96855.0,0.1]
[1735841575171,0.51593,96857.0,96850.0,0.000171]
[1735841575330,0.51593,96857.0,96855.0,0.1]
[1735841577630,0.51593,96857.0,96850.0,0.000171]
[1735841578844,0.61991632,96857.0,96850.0,0.000171]
[1735841580803,0.79291632,96857.0,96850.0,0.000171]
[1735841581011,0.89291632,96857.0,96850.0,0.000171]
[1735841581207,0.90184778,96857.0,96850.0,0.000171]
[1735841581551,0.76991632,96857.0,96850.0,0.000171]
[1735841581962,0.86991632,96857.0,96850.0,0.000171]
[1735841583039,0.89291632,96857.0,96850.0,0.000171]
[1735841583200,0.92484919,96857.0,96850.0,0.000171]
[1735841585949,0.90184919,96857.0,96850.0,0.000171]
[1735841586556,0.86991632,96857.0,96850.0,0.000171]
[1735841586788,0.76991632,96857.0,96850.0,0.000171]
[1735841587375,0.51593,96857.0,96850.0,0.100171]
[1735841589565,0.51593,96857.0,96856.0,0.100171]
[1735841589794,0.51593,96857.0,96856.0,0.000171]
[1735841594693,0.61991632,96857.0,96856.0,0.000171]
[1735841595893,0.51593,96857.0,96856.0,0.000171]
[1735841599152,0.51593,96857.0,96850.0,0.10010381]
[1735841599583,0.206502,96851.0,96850.0,0.10010381]
[1735841600802,0.20664852,96851.0,96850.0,0.10010381]
[1735841601136,0.00014652,96851.0,96850.0,0.10010381]
[1735841601844,0.00014652,96851.0,96850.0,0.38650781]
[1735841602429,0.00014652,96851.0,96850.0,1.88650781]
[1735841603349,0.00014652,96851.0,96850.0,2.31130013]
[1735841603488,0.00014652,96851.0,96850.0,2.29779713]
[1735841603705,0.00014652,96851.0,96850.0,2.23549013]
[1735841603917,0.00014652,96851.0,96850.0,2.03609413]
[1735841604352,0.00014652,96851.0,96850.0,2.04618012]
[1735841604610,0.00014652,96851.0,96850.0,2.22097912]
[1735841604857,0.00014652,96851.0,96850.0,2.04618012]
[1735841605107,0.00014652,96851.0,96850.0,2.29618012]
[1735841605374,0.00014652,96851.0,96850.0,2.52272912]
[1735841606731,0.00014652,96851.0,96850.0,2.42272912]
[1735841606966,0.00014652,96851.0,96850.0,2.39514812]
[1735841607208,0.00014652,96851.0,96850.0,2.19618012]
[1735841607441,0.00014652,96851.0,96850.0,1.88650781]
[1735841607689,0.00014652,96851.0,96850.0,0.30660781]
[1735841607914,0.00014652,96851.0,96850.0,0.10010381]
[1735841609456,0.00014652,96851.0,96850.0,0.20409013]
[1735841609933,0.00014652,96851.0,96850.0,1.70409013]
[1735841610499,0.00014652,96851.0,96850.0,1.60010381]
[1735841610696,0.00014652,96851.0,96850.0,1.70409013]
[1735841611582,0.00014652,96851.0,96850.0,1.60409013]
[1735841611818,0.00014652,96851.0,96850.0,1.70409013]
[1735841612076,0.00014652,96851.0,96850.0,1.60409013]
[1735841612306,0.00014652,96851.0,96850.0,1.70409013]
[1735841612510,0.00014652,96851.0,96850.0,1.50010381]
[1735841612683,0.00014652,96851.0,96850.0,1.60010381]
[1735841615768,0.00031752,96851.0,96850.0,1.60010381]
[1735841615972,0.00031752,96851.0,96850.0,1.70409013]
[1735841617404,0.00031752,96851.0,96850.0,1.85409013]
[1735841618566,0.00031752,96851.0,96850.0,2.34378113]
[1735841618815,0.00031752,96851.0,96850.0,2.47238113]
[1735841619015,0.00031752,96851.0,96850.0,2.59538113]
[1735841619670,0.00031752,96851.0,96850.0,2.49538113]
[1735841620051,0.00031752,96851.0,96850.0,2.83755095]
[1735841620188,0.00031752,96851.0,96850.0,2.93755095]
[1735841620618,0.00031752,96851.0,96850.0,2.83755095]
[1735841620870,0.00031752,96851.0,96850.0,2.93755095]
[1735841621089,0.00031752,96851.0,96850.0,2.59538113]
[1735841622319,0.00031752,96851.0,96850.0,2.68801511]
[1735841622520,0.00031752,96851.0,96850.0,2.39988711]
[1735841623137,0.00031752,96851.0,96850.0,2.02562411]
[1735841623353,0.00031752,96851.0,96850.0,1.75010381]
[1735841623510,0.00031752,96851.0,96850.0,1.85409013]
[1735841623714,0.00031752,96851.0,96850.0,2.88170913]
[1735841623992,0.00031752,96851.0,96850.0,1.85409013]
[1735841624777,0.00031752,96851.0,96850.0,0.10010381]
[1735841625150,0.00031752,96851.0,96850.0,0.20010381]
[1735841625359,0.00031752,96851.0,96850.0,1.70010381]
[1735841625883,0.00031752,96851.0,96850.0,1.80409013]
[1735841626058,0.00031752,96851.0,96850.0,2.40508913]
[1735841626259,0.00031752,96851.0,96850.0,2.42822413]
[1735841626636,0.00031752,96851.0,96850.0,2.14399613]
[1735841627059,0.00031752,96851.0,96850.0,2.14883413]
[1735841627524,0.00031752,96851.0,96850.0,2.03479013]
[1735841627962,0.00031752,96851.0,96850.0,2.34317013]
[1735841628208,0.00031752,96851.0,96850.0,2.27397713]
[1735841628429,0.00031752,96851.0,96850.0,2.04499205]
[1735841629606,0.00031752,96851.0,96850.0,2.17937605]
[1735841629813,0.00031752,96851.0,96850.0,2.04499205]
[1735841631029,0.00031752,96851.0,96850.0,2.19562605]
[1735841631349,0.00031752,96851.0,96850.0,2.04499205]
[1735841631548,0.00031752,96851.0,96850.0,2.35673705]
[1735841631993,0.00031752,96851.0,96850.0,2.45673705]
[1735841632202,0.00031752,96851.0,96850.0,2.47973705]
[1735841632408,5.2e-07,96851.0,96850.0,2.57973705]
[1735841632625,5.2e-07,96851.0,96850.0,2.26799205]
[1735841633481,5.2e-07,96851.0,96850.0,2.61010745]
[1735841633713,0.000171,96866.0,96865.0,0.656472]
[1735841633944,0.000171,96866.0,96865.0,1.12321332]
[1735841634155,0.000171,96866.0,96865.0,0.76045832]
[1735841634448,0.000171,96866.0,96865.0,2.26045832]
[1735841635148,0.000171,96866.0,96865.0,2.16045832]
[1735841635877,0.000171,96866.0,96865.0,2.06045832]
[1735841636105,0.000171,96866.0,96865.0,2.16045832]
[1735841636371,0.000171,96866.0,96865.0,0.23898075]
[1735841636819,0.000171,96866.0,96865.0,1.73898075]
[1735841637180,0.000171,96866.0,96865.0,1.6]
[1735841640663,0.000171,96866.0,96865.0,1.80398632]
[1735841641952,0.000221,96866.0,96865.0,1.80398632]
[1735841642159,0.000221,96866.0,96865.0,1.7]
[1735841642373,0.000221,96866.0,96865.0,1.6]
[1735841643481,0.000221,96866.0,96865.0,1.70398632]
[1735841643702,0.000221,96866.0,96865.0,1.95398632]
[1735841643909,0.000221,96866.0,96865.0,2.05398632]
[1735841644115,0.000221,96866.0,96865.0,2.50351832]
[1735841644823,0.000221,96866.0,96865.0,2.51407077]
[1735841645460,0.000221,96866.0,96865.0,3.08802647]
[1735841645726,0.000221,96866.0,96865.0,2.88802647]
[1735841645962,0.000221,96866.0,96865.0,2.53849447]
[1735841646649,0.000221,96866.0,96865.0,2.14630743]
[1735841646847,0.000221,96866.0,96865.0,2.04232111]
[1735841647068,0.000221,96866.0,96865.0,1.94232111]
[1735841647215,0.000221,96866.0,96865.0,1.6]
[1735841648668,0.000221,96866.0,96865.0,1.5]
[1735841648669,0.206691,96866.0,96865.0,1.5]
[1735841648841,0.206691,96866.0,96860.0,0.1]
[1735841649195,0.206691,96866.0,96861.0,1.5]
[1735841649586,0.000221,96866.0,96865.0,0.1]
[1735841650589,0.000221,96866.0,96861.0,1.5]
[1735841650850,0.000221,96866.0,96865.0,0.1]
[1735841651957,0.000221,96866.0,96865.0,1.6]
[1735841656994,0.000221,96866.0,96865.0,0.1]
[1735841657383,0.000221,96866.0,96865.0,1.6]
[1735841657981,0.000221,96866.0,96865.0,1.7]
[1735841658190,0.000221,96866.0,96865.0,1.906472]
[1735841660375,0.000221,96866.0,96865.0,1.806472]
[1735841661350,0.000221,96866.0,96865.0,1.706472]
[1735841661566,0.000221,96866.0,96865.0,1.806472]
[1735841662506,0.000221,96866.0,96865.0,1.91045832]
[1735841663182,0.000221,96866.0,96865.0,2.16045832]
[1735841663440,0.000221,96866.0,96865.0,2.56322632]
[1735841663695,0.000221,96866.0,96865.0,2.65595685]
[1735841663928,0.000221,96866.0,96865.0,2.25318885]
[1735841665154,0.000221,96866.0,96865.0,2.82610351]
[1735841666572,0.000221,96866.0,96865.0,2.50307551]
[1735841667358,0.000221,96866.0,96865.0,2.64838251]
[1735841667556,0.000221,96866.0,96865.0,2.77138251]
[1735841667979,0.000221,96866.0,96865.0,2.62607551]
[1735841668188,0.000221,96866.0,96865.0,4.04073451]
[1735841668675,0.000221,96866.0,96865.0,4.02851051]
[1735841668878,0.000221,96866.0,96865.0,3.96126051]
[1735841669116,0.000221,96866.0,96865.0,4.06126051]
[1735841669320,0.20638,96909.0,96871.0,0.55646]
[1735841669493,0.20638,96909.0,96871.0,0.85266132]
[1735841669905,0.206389,96905.0,96871.0,2.35266132]
[1735841670107,0.20638,96909.0,96871.0,2.45266132]
[1735841671282,0.206398,96900.0,96871.0,2.35266132]
[1735841671483,0.206398,96900.0,96871.0,1.96044632]
[1735841671683,0.206398,96900.0,96871.0,2.41339929]
[1735841671885,0.00022156,96872.0,96871.0,2.41339929]
[1735841672326,0.00022156,96872.0,96871.0,2.40306351]
[1735841672491,0.00022156,96872.0,96871.0,0.44261719]
[1735841672917,0.00022156,96872.0,96871.0,1.94261719]
[1735841673265,0.00022156,96872.0,96871.0,2.14907719]
[1735841673465,0.00022156,96872.0,96871.0,1.94261719]
[1735841674160,0.00022156,96872.0,96871.0,2.14907719]
[1735841674275,0.00022156,96872.0,96871.0,1.80646]
[1735841675927,0.00022156,96872.0,96871.0,0.30646]
[1735841676175,0.00022156,96872.0,96871.0,0.56044632]
[1735841676420,0.00022156,96872.0,96871.0,2.06044632]
[1735841677169,0.00022156,96872.0,96871.0,2.07061232]
[1735841677573,0.00022156,96872.0,96871.0,2.36322132]
[1735841677922,0.00022156,96872.0,96871.0,2.38622132]
[1735841678387,5.6e-07,96872.0,96871.0,2.38622132]
[1735841678610,5.6e-07,96872.0,96871.0,2.29361232]
[1735841679023,5.6e-07,96872.0,96871.0,2.39361232]
[1735841679463,5.6e-07,96872.0,96871.0,2.53584645]
[1735841680669,5.6e-07,96872.0,96871.0,2.73584645]
[1735841681272,0.0487,96908.0,96907.0,0.306383]
[1735841681467,0.04918981,96908.0,96907.0,0.306383]
[1735841681673,0.04918981,96908.0,96907.0,0.1]
[1735841682096,0.04918981,96908.0,96899.0,0.1]
[1735841682291,0.206391,96904.0,96897.0,0.1]
[1735841682503,0.04918981,96908.0,96904.0,0.1]
[1735841682709,0.04918981,96908.0,96907.0,0.1]
[1735841683347,0.00048981,96908.0,96907.0,0.1]
[1735841683775,0.00048981,96908.0,96907.0,1.6]
[1735841685220,0.00048981,96908.0,96907.0,0.1]
[1735841689477,0.00048981,96908.0,96907.0,1.6]
[1735841692662,0.00048981,96908.0,96907.0,1.5]
[1735841692870,0.00048981,96908.0,96901.0,0.1]
[1735841693088,0.206383,96907.0,96901.0,0.1]
[1735841693296,0.206385,96906.0,96901.0,0.1]
[1735841693521,0.206385,96906.0,96902.0,1.5]
[1735841695303,0.00048981,96908.0,96907.0,0.1]
[1735841697776,0.00066081,96908.0,96907.0,0.1]
[1735841698565,0.00066081,96908.0,96905.0,0.206385]
[1735841698727,0.00066081,96908.0,96899.0,0.2064]
[1735841698928,0.20639,96904.0,96901.0,0.1]
[1735841699565,0.206387,96905.0,96894.0,0.1]
[1735841700272,0.206397,96901.0,96894.0,0.1]
[1735841701022,0.0456,96906.0,96894.0,0.1]
[1735841701219,0.0456,96906.0,96890.0,1.5]
[1735841701220,0.0456,96906.0,96901.0,0.1]
[1735841701422,0.206387,96905.0,96901.0,0.1]
[1735841701650,0.206399,96900.0,96896.0,0.1]
[1735841701850,0.206387,96905.0,96890.0,1.5]
[1735841701851,0.206405,96897.0,96890.0,1.6]
[1735841702093,0.0456,96906.0,96887.0,0.1]
[1735841702222,0.10398632,96905.0,96887.0,0.1]
[1735841702421,0.206389,96904.0,96887.0,0.1]
[1735841702627,0.206423,96888.0,96887.0,0.1]
[1735841703428,0.0456,96906.0,96887.0,0.1]
[1735841703429,0.20642,96890.0,96889.0,0.1]
[1735841703819,0.206399,96900.0,96892.0,0.1]
[1735841704029,0.333359,96919.0,96907.0,0.1]
[1735841704236,0.20704181,96908.0,96907.0,0.1]
[1735841704467,0.206402,96899.0,96898.0,0.1]
[1735841705013,0.206402,96899.0,96898.0,1.6]
[1735841705455,0.206402,96899.0,96898.0,1.6032294]
[1735841706086,0.206402,96899.0,96898.0,1.5032294]
[1735841706290,0.206402,96899.0,96898.0,1.6032294]
[1735841707139,0.00066081,96908.0,96907.0,0.1]
[1735841707576,0.206383,96907.0,96906.0,0.1]
[1735841708328,0.00066081,96908.0,96907.0,0.1]
[1735841708862,0.00066081,96908.0,96907.0,0.10322927]
[1735841709757,0.00066081,96908.0,96907.0,0.00322927]
[1735841709971,0.07566081,96908.0,96907.0,0.00322927]
[1735841710182,0.38543728,96908.0,96907.0,0.00322927]
[1735841710418,0.37514713,96908.0,96907.0,0.00322927]
[1735841710626,0.075,96907.0,96883.0,0.1]
[1735841710796,0.206432,96884.0,96882.0,0.09257423]
[1735841710996,0.0455,96883.0,96882.0,0.09257423]
[1735841711923,0.0455,96883.0,96876.0,0.1]
[1735841711924,0.206447,96877.0,96876.0,0.1]
[1735841713332,0.20645,96876.0,96873.0,0.09257423]
[1735841713759,0.21689496,96877.0,96872.0,8.55e-05]
[1735841713964,0.206452,96875.0,96872.0,8.55e-05]
[1735841714385,0.412904,96875.0,96872.0,8.55e-05]
[1735841715241,0.206452,96875.0,96872.0,0.1000855]
[1735841715390,0.206452,96875.0,96874.0,0.1]
[1735841716034,0.206452,96875.0,96874.0,1.6]
[1735841716872,0.206452,96875.0,96872.0,8.55e-05]
[1735841717074,0.412904,96875.0,96872.0,8.55e-05]
[1735841718001,0.206452,96875.0,96873.0,0.1]
[1735841718784,0.412904,96875.0,96872.0,8.55e-05]
[1735841719303,0.206455,96873.0,96872.0,8.55e-05]
[1735841719446,0.31044132,96873.0,96872.0,8.55e-05]
[1735841719833,0.43974132,96873.0,96872.0,8.55e-05]
[1735841720281,0.63304024,96873.0,96866.0,8.55e-05]
[1735841720500,0.510268,96867.0,96866.0,5e-07]
[1735841720701,0.3373,96852.0,96851.0,0.0006059]
[1735841720928,0.44128632,96852.0,96851.0,0.00065646]
[1735841721323,0.206515,96845.0,96844.0,0.09257423]
[1735841721554,0.31050132,96845.0,96844.0,0.09257423]
[1735841721905,0.10398632,96845.0,96831.0,0.0002]
[1735841722187,0.1308,96852.0,96831.0,0.00034652]
[1735841722188,0.206543,96832.0,96831.0,0.00034652]
[1735841722876,0.338043,96832.0,96831.0,0.00034652]
[1735841723288,0.34822424,96832.0,96831.0,0.00034652]
[1735841723895,0.86458424,96832.0,96831.0,0.00034652]
[1735841724677,0.854403,96832.0,96831.0,0.00034652]
[1735841724892,0.722903,96832.0,96831.0,0.00034652]
[1735841725299,0.722903,96832.0,96831.0,1.50034652]
[1735841726881,0.82688932,96832.0,96831.0,0.00034652]
[1735841729056,0.83710158,96832.0,96831.0,0.00034652]
[1735841729642,0.96170158,96832.0,96831.0,0.00034652]
[1735841730529,1.00551665,96832.0,96831.0,0.00034652]
[1735841730726,1.15551665,96832.0,96831.0,5.2e-07]
[1735841731039,1.28793948,96832.0,96831.0,5.2e-07]
[1735841731854,1.26403764,96832.0,96831.0,5.2e-07]
[1735841732467,1.29646047,96832.0,96831.0,5.2e-07]
[1735841732662,1.26403764,96832.0,96831.0,5.2e-07]
[1735841733080,1.29646047,96832.0,96831.0,5.2e-07]
[1735841734107,1.29646047,96832.0,96831.0,2e-08]
[1735841734307,0.356553,96827.0,96826.0,2e-08]
[1735841734510,1.15612215,96827.0,96826.0,2e-08]
[1735841734733,1.26393608,96827.0,96826.0,2e-08]
[1735841734942,0.330379,96815.0,96802.0,0.014663]
[1735841735173,1.1516779,96815.0,96802.0,0.014663]
[1735841735348,1.15947718,96815.0,96802.0,0.014663]
[1735841736121,1.18933424,96815.0,96802.0,0.014663]
[1735841736338,1.15947718,96815.0,96802.0,0.014663]
[1735841738725,1.18063753,96815.0,96802.0,0.014663]
[1735841738998,1.19083823,96815.0,96802.0,0.014663]
[1735841739411,1.16288565,96815.0,96802.0,0.014663]
[1735841739819,1.13988565,96815.0,96802.0,0.114663]
[1735841740009,1.13988565,96815.0,96803.0,1.5]
[1735841740248,0.73073828,96815.0,96810.0,0.1]
[1735841740739,0.73073828,96815.0,96803.0,1.5]
[1735841740740,0.8347246,96815.0,96803.0,1.6]
[1735841741032,0.8347246,96815.0,96802.0,0.014663]
[1735841741184,0.73073828,96815.0,96806.0,0.1]
[1735841741803,0.52415928,96815.0,96814.0,0.1000856]
[1735841742006,0.52415928,96815.0,96814.0,0.28367192]
[1735841742190,0.52415928,96815.0,96814.0,0.63367192]
[1735841742408,0.52415928,96815.0,96814.0,0.65667192]
[1735841742409,0.51636,96815.0,96814.0,0.65667192]
[1735841742615,0.02035459,96866.0,96831.0,0.756545]
[1735841742818,0.206464,96870.0,96831.0,1.39039632]
[1735841743019,0.206466,96868.0,96831.0,1.39039632]
[1735841743220,0.206494,96855.0,96831.0,2.36653132]
[1735841743425,0.023,96878.0,96831.0,2.16053132]
[1735841743679,0.20652,96843.0,96831.0,2.01053132]
[1735841743902,0.20652,96843.0,96831.0,1.6]
[1735841744216,0.20652,96843.0,96831.0,0.1]
[1735841744386,0.206529,96839.0,96831.0,0.1]
[1735841744750,0.20654,96834.0,96831.0,0.1]
[1735841744946,0.206529,96839.0,96831.0,0.1]
[1735841745176,0.206538,96835.0,96831.0,1.6]
[1735841745905,0.206512,96847.0,96831.0,0.1]
[1735841746109,0.00031779,96832.0,96831.0,0.20398632]
[1735841746724,0.00031779,96832.0,96831.0,0.1]
[1735841747434,0.0067823,96832.0,96831.0,0.1]
[1735841747652,0.00677942,96832.0,96831.0,0.1]
[1735841748003,0.00031779,96832.0,96831.0,0.1]
[1735841749440,0.00031779,96832.0,96831.0,0.20398632]
[1735841749850,0.00031779,96832.0,96831.0,0.35398632]
[1735841750244,0.00031779,96832.0,96831.0,0.47698632]
[1735841750457,0.00031779,96832.0,96831.0,0.37698632]
[1735841750662,0.00031779,96832.0,96831.0,0.55398632]
[1735841751877,0.00031779,96832.0,96831.0,0.45398632]
[1735841752181,0.00031779,96832.0,96831.0,0.56417896]
[1735841752568,0.00031779,96832.0,96831.0,2.06417896]
[1735841753199,0.00031779,96832.0,96831.0,0.25]
[1735841754209,0.00031779,96832.0,96831.0,0.35398632]
[1735841754410,0.00031779,96832.0,96831.0,0.45398632]
[1735841754610,0.00031779,96832.0,96831.0,0.74016932]
[1735841754812,0.00031779,96832.0,96831.0,2.24016932]
[1735841755217,0.0829,96882.0,96876.0,0.1]
[1735841755411,0.206443,96879.0,96876.0,0.1]
[1735841755736,0.206447,96877.0,96876.0,0.1]
[1735841756153,0.21310176,96877.0,96876.0,0.1]